Cogmind - Beta 15 *** ADVENTURER MODE // 2025.08.25 @ 12:02:06 Player: glorp Result: Destroyed by Y-45 Defender with Heavy Assault Rifle Performance ------------- Evolutions (1) 500 Regions Visited (3) 600 Robots Destroyed (47) 235 Value Destroyed (1158) 1158 Prototype IDs (2) 40 Alien Tech Used (0) 0 Bonus (0) 0 TOTAL SCORE: 2533 Bonus ------- None Cogmind --------- Core Integrity 0/400 Matter 201/300 Energy 80/100 System Corruption 0% Temperature Cool (0) Movement Walking (130) Location -9/Mines Parts ------- > --- POWER (1) -------- (None) > --- PROPULSION (2) --- Titanium Leg Titanium Leg > --- UTILITY (4) ------ Melee Analysis Suite Melee Analysis Suite > --- WEAPON (2) ------- High-powered Shotgun High-powered Shotgun > --- INVENTORY (5) ---- Light Nuclear Core VTOL Module Heavy Particle Cannon Assault Rifle Grenade Launcher Peak State ------------ > --- POWER ------------ (None) > --- PROPULSION ------- Titanium Leg Titanium Leg > --- UTILITY ---------- Melee Analysis Suite Melee Analysis Suite > --- WEAPON ----------- High-powered Shotgun High-powered Shotgun > --- INVENTORY -------- Light Nuclear Core VTOL Module Heavy Particle Cannon Assault Rifle Grenade Launcher [Rating: 19] Favorites ----------- Power Light Ion Engine Engine Light Ion Engine Power Core Light Nuclear Core Propulsion Wheel Leg Aluminum Leg Wheel Wheel Flight Unit VTOL Module Utility Huge Storage Unit Device Improved Terrain Scanner Storage Huge Storage Unit Processor Melee Analysis Suite Protection Improved Power Shielding Weapon Grenade Launcher Energy Gun Particle Gun Energy Cannon Heavy Particle Cannon Ballistic Gun Assault Rifle Launcher Grenade Launcher Build | -11 -10 -9 -9 ------- Run | Yrd Mat Mat Min Slots Evolved 2 | . . 2 . Power . | . . . . Propulsion . | . . . . Utility 2 | . . 2 . Weapon . | . . . . Parts Attached 32 | 6 8 18 . Power 3 | 1 . 2 . Engine 2 | 1 . 1 . Core 1 | . . 1 . Reactor . | . . . . Propulsion 8 | 2 2 4 . Treads . | . . . . Leg 4 | 2 . 2 . Wheel 3 | . 2 1 . Hover . | . . . . Flight 1 | . . 1 . Utility 9 | 1 2 6 . Device 3 | . 1 2 . Storage 2 | 1 1 . . Processor 2 | . . 2 . Hackware . | . . . . Protection 2 | . . 2 . Artifact . | . . . . Weapon 12 | 2 4 6 . Energy Gun 1 | . 1 . . Energy Cannon 2 | . . 2 . Ballistic Gun 4 | 2 . 2 . Ballistic Cannon . | . . . . Launcher 5 | . 3 2 . Special Weapon . | . . . . Impact Weapon . | . . . . Slashing Weapon . | . . . . Piercing Weapon . | . . . . Special Melee Weapon . | . . . . Unidentified Prototypes . | . . . . Parts Lost 15 | . 2 13 . Power 2 | . 1 1 . Propulsion 4 | . . 4 . Utility 3 | . . 3 . Weapon 6 | . 1 5 . Highest Loss Streak 5 | . 1 5 . To Critical Strikes . | . . . . Average Backups 5 | . 4 7 5 Power . | . . . 1 Propulsion 1 | . . 2 1 Utility . | . . . . Weapon 3 | . 3 3 3 Tool/Special . | . . . . Unused Backups 1 | . . 1 . Power 1 | . . 1 . Propulsion . | . . . . Utility . | . . . . Weapon . | . . . . Tool/Special . | . . . . Average Slot Usage (%) 73 | . 75 70 66 Engine 5 | . 5 6 . Leg 4 | . 6 1 22 Wheel 13 | . 13 13 . Device 9 | . 8 11 . Storage 12 | . 14 9 . Protection 3 | . . 8 . Energy Gun 4 | . 5 4 . Energy Cannon 3 | . . 8 . Ballistic Gun 4 | . 6 1 22 Launcher 10 | . 15 2 . Peak Build Rating 19 | 6 9 19 19 Average Rating 9 | 4 6 12 19 On Entrance 8 | . 6 9 19 Naked Turns . | . . . . Heaviest Build 100 | 11 89 100 6 Greatest Support 34 | 20 20 34 34 Greatest Overweight (x) 31 | . 8 31 . Average Overweight (x) 4 | . 5 5 . Largest Inventory Capacity 25 | 8 25 25 5 Average Capacity 22 | 6 24 21 5 Most Carried 9 | . 7 9 5 Average Carried 5 | . 4 7 5 Final Capacity 25 | 8 25 5 5 Final Carried 7 | . 7 5 5 Class Distribution -------------------- 61% | Mutant 38% | Scavenger-Mutant Dominant Class ---------------- Mutant | -10/Materials Mutant | -9/Materials Mutant | -9/Mines Resources | -11 -10 -9 -9 ----------- Run | Yrd Mat Mat Min Matter Collected 802 | 112 153 476 61 Remotely . | . . . . Salvage Created 1086 | . 250 836 . Parts 84 | . 26 58 . Haulers Intercepted . | . . . . Recyclers Shooed . | . . . . Parts Field Recycled . | . . . . Retrieved Matter . | . . . . Parts Self-Destructed . | . . . . Prevented . | . . . . Kills | -11 -10 -9 -9 ------- Run | Yrd Mat Mat Min Combat Hostiles Destroyed 30 | . 7 23 . Guns 10 | . 3 7 . Cannons 8 | . . 8 . AOE 12 | . 4 8 . Classes Destroyed 10 | . 8 2 . Worker 4 | . 2 2 . Builder 6 | . 4 2 . Tunneler 1 | . 1 . . Recycler 1 | . 1 . . Mechanic 1 | . 1 . . Operator 1 | . . 1 . Watcher 3 | . 2 1 . Swarmer 8 | . 5 3 . Grunt 15 | . 2 13 . Sentry 7 | . . 7 . Best Kill Streak 7 | . 5 7 . Combat Bots Only 5 | . 4 5 . Max Kills in Single Turn 2 | . 2 2 . Gunslinging . | . . . . Exploded 2 | . 1 2 . Melee . | . . . . Uniques/NPCs Destroyed . | . . . . Combat | -11 -10 -9 -9 -------- Run | Yrd Mat Mat Min Hostile Shots Fired 216 | . 37 177 2 Missed 58 | . 14 43 1 Hits 158 | . 23 134 1 Projectile 158 | . 23 134 1 Critical Strikes 4 | . 1 3 . Part Disruptions 1 | . . 1 . Damage Taken 1854 | . 483 1359 12 Core 489 | . 81 396 12 Absorbed by Shields 28 | . . 28 . Redirected to Shielding 26 | . . 26 . Ignored by Resistances 556 | . 137 416 3 Core Remaining (%) 83 | 100 67 . . Volleys Fired 67 | . 19 48 . Largest 2 | . 2 2 . Hottest 150 | . 95 150 . Shots Fired 109 | . 34 75 . Gun 47 | . 19 28 . Cannon 36 | . . 36 . Launcher 26 | . 15 11 . Special . | . . . . Kinetic 28 | . 18 10 . Thermal 55 | . 1 54 . Explosive 26 | . 15 11 . Electromagnetic . | . . . . Robot Hit Streak 15 | . 5 15 . Robot Miss Streak 3 | . 1 3 . Penetration Max . | . . . . Secondary Targets 2 | . 1 1 . Max Gunslinging Chain 1 | . 1 1 . Shots Hit Robots 75 | . 22 53 . Core Hits 66 | . 23 43 . Critical Kills . | . . . . Critical Parts Destroyed . | . . . . Critical Strikes . | . . . . Melee Attacks . | . . . . Impact . | . . . . Slashing . | . . . . Piercing . | . . . . Sneak Attacks . | . . . . Combat Hostiles . | . . . . Follow-up Attacks . | . . . . Damage Inflicted 3055 | 1 1301 1753 . Guns 489 | . 130 359 . Cannons 650 | . . 650 . Explosions 1915 | . 1171 744 . Melee . | . . . . Ramming 1 | 1 . . . Kinetic 263 | . 114 149 . Thermal 876 | . 16 860 . Explosive 1915 | . 1171 744 . Electromagnetic . | . . . . Impact . | . . . . Slashing . | . . . . Piercing . | . . . . Highest Corruption 2 | . 2 . . Average Corruption 1 | . 1 . . Corruption Purged . | . . . . Corruption Blocked . | . . . . Effects 4 | . 4 . . Message Errors 1 | . 1 . . Energy Discharges 1 | . 1 . . Data Loss (minor) 2 | . 2 . . Overload Shots . | . . . . Overflow Damage 51 | . 21 30 . Projectiles . | . . . . Explosions 51 | . 21 30 . Melee . | . . . . Knockbacks . | . . . . Impact . | . . . . Kinetic . | . . . . Secondary . | . . . . Self-Inflicted Damage 429 | . 306 123 . Shots 13 | . 7 6 . Rammed . | . . . . Targets Rammed 2 | 1 1 . . Kicked 2 | 1 1 . . Crushed . | . . . . Highest Temperature 501 | . 18 501 . Average Temperature 111 | . 9 113 . Received Heat Transfer 753 | . 45 708 . Effects 5 | . . 5 . Shutdowns 1 | . . 1 . Interference 3 | . . 3 . Matter Decay 1 | . . 1 . Siege Activations . | . . . . Martial Activations . | . . . . Shielding Activations . | . . . . Robots Disrupted . | . . . . Combat Hostiles . | . . . . Robots Corrupted . | . . . . Combat Hostiles . | . . . . Parts Fried . | . . . . Impact Corruptions . | . . . . Robots Melted . | . . . . Combat Hostiles . | . . . . Parts Melted 2 | . . 2 . Heat Transferred 1517 | . 37 1480 . Parts Sabotaged . | . . . . Parts Stolen . | . . . . Parts Stripped . | . . . . Power Chain Reactions . | . . . . Alert | -11 -10 -9 -9 ------- Run | Yrd Mat Mat Min Maximum Alert Level 1 | . . 1 . Low Security (%) 79 | 100 100 44 100 Level 1 20 | . . 55 . Level 2 . | . . . . Level 3 . | . . . . Level 4 . | . . . . Level 5 . | . . . . High Security . | . . . . Max Security . | . . . . Peak Influence 311 | . 138 311 99 Initial 99 | . . . 99 Average 89 | . 30 189 99 Influence Increases 1232 | . 432 800 . Destroy 0b10 Robot/C 600 | . 140 460 . Destroy 0b10 Robot/NC 85 | . 55 30 . Destroy Leader 176 | . 34 142 . Successful Hack 23 | . . 23 . Disable Machine 81 | . 45 36 . Destroy Structure 117 | . 53 64 . Lose Combat Pursuer 150 | . 105 45 . Influence Decreases 1133 | . 432 499 202 Entered New Map 202 | . . . 202 Time Decay 791 | . 412 379 . Lost Part 140 | . 20 120 . Squads Dispatched 6 | . 1 5 . Investigation 3 | . 1 2 . Extermination . | . . . . Reinforcement 3 | . . 3 . Assault . | . . . . Garrison . | . . . . Intercept . | . . . . Searches Triggered . | . . . . Construction Impeded 1 | . . 1 . Haulers Reinforced . | . . . . Active Scanning Responses . | . . . . Cargo Convoy Interrupts . | . . . . Stealth | -11 -10 -9 -9 --------- Run | Yrd Mat Mat Min Distress Signals 3 | . . 3 . Communications Jammed . | . . . . Distress Signals . | . . . . Times Spotted 49 | . 18 29 2 Peak Tracking Total 6 | . 3 6 2 Tactical Retreats 7 | . 6 1 . Traps | -11 -10 -9 -9 ------- Run | Yrd Mat Mat Min Traps Triggered 6 | . 5 1 . Indirectly . | . . . . Trap Hack Attempts . | . . . . Triggered . | . . . . Disarmed . | . . . . Reprogrammed . | . . . . Reused . | . . . . Traps Extracted . | . . . . Installed . | . . . . Triggered . | . . . . Machines | -11 -10 -9 -9 ---------- Run | Yrd Mat Mat Min Machines Disabled 9 | . 5 4 . Max in Single Turn 2 | . 1 2 . Machines Repaired . | . . . . Machines Dismantled . | . . . . Machines Sabotaged . | . . . . Overloaded Fab Kills . | . . . . Hacking | -11 -10 -9 -9 --------- Run | Yrd Mat Mat Min Machines Accessed 6 | . 1 5 . Terminals 5 | . 1 4 . Fabricators . | . . . . Repair Stations . | . . . . Recycling Units . | . . . . Scanalyzers 1 | . . 1 . Garrison Access . | . . . . Total Hacks 23 | . 2 21 . Successful 14 | . . 14 . Failed 9 | . 2 7 . Catastrophic 1 | . . 1 . Database Lockouts . | . . . . Manual 8 | . . 8 . Terminals 21 | . 2 19 . Fabricators . | . . . . Repair Stations . | . . . . Recycling Units . | . . . . Scanalyzers 2 | . . 2 . Garrison Access . | . . . . Terminal Hacks 12 | . . 12 . Record 5 | . . 5 . Prototype ID Bank 1 | . . 1 . Level Access Points 1 | . . 1 . Terminal Index 1 | . . 1 . Alert Level 1 | . . 1 . Recall Reinforcements 1 | . . 1 . Registered Components 1 | . . 1 . Zone Layout 1 | . . 1 . Fabricator Hacks . | . . . . Repair Station Hacks . | . . . . Recycling Unit Hacks . | . . . . Scanalyzer 2 | . . 2 . Insert Component 1 | . . 1 . Analyze 1 | . . 1 . Garrison Access Hacks . | . . . . Unauthorized Hacks . | . . . . Terminals . | . . . . Fabricators . | . . . . Repair Stations . | . . . . Recycling Units . | . . . . Scanalyzers . | . . . . Garrison Access . | . . . . Data Cores Recovered . | . . . . Used . | . . . . Hacking Detections 5 | . 1 4 . Full Trace Events 4 | . 1 3 . Feedback Events . | . . . . Feedback Blocked . | . . . . Robot Schematics Acquired . | . . . . Robots Built . | . . . . Authchips . | . . . . Time . | . . . . Total Robot Build Rating . | . . . . Part Schematics Acquired 1 | . . 1 . Parts Built . | . . . . Authchips . | . . . . Time . | . . . . Total Part Build Rating . | . . . . Parts Repaired . | . . . . Time . | . . . . Parts Recycled . | . . . . Recycled Matter . | . . . . Retrieved Matter . | . . . . Retrieved Components . | . . . . Parts Scanalyzed 1 | . . 1 . Part Schematics Acquired 1 | . . 1 . Parts Damaged . | . . . . Bothacking | -11 -10 -9 -9 ------------ Run | Yrd Mat Mat Min Used RIF Installer . | . . . . Robots Hacked . | . . . . Non-combat . | . . . . Combat . | . . . . Robot Hacks Applied . | . . . . Relay Couplers Released . | . . . . Fabnet Peak Effective % . | . . . . Robots Rewired . | . . . . Allies Hacked . | . . . . Hacks Repelled . | . . . . Allies | -11 -10 -9 -9 -------- Run | Yrd Mat Mat Min Total Allies . | . . . . Largest Group . | . . . . Highest-Rated Group . | . . . . Highest-Rated Ally . | . . . . Total Orders . | . . . . Ally Attacks . | . . . . Total Damage . | . . . . Kills . | . . . . Allies Corrupted . | . . . . Allies Melted . | . . . . Intel | -11 -10 -9 -9 ------- Run | Yrd Mat Mat Min Active Infowar (turns) 1539 | . 843 696 . Terrain 1539 | . 843 696 . Robot Analysis Total . | . . . . Derelict Logs Recovered . | . . . . Drone Launches . | . . . . Drone Recoveries . | . . . . Exploration | -11 -10 -9 -9 ------------- Run | Yrd Mat Mat Min Turns Passed 2313 | 67 1375 857 14 Spaces Moved 1109 | 57 604 437 11 Core 21 | 15 . 6 . Treads . | . . . . Legs 179 | 42 98 28 11 Wheels 815 | . 506 309 . Hover . | . . . . Flight 94 | . . 94 . Fastest Speed 35 | 50 120 35 130 Average Speed 185 | 101 214 157 130 Slowest Speed 1600 | 120 680 1600 130 Overloaded Moves . | . . . . Propulsion Burnouts . | . . . . Robots Hopped 3 | . . 3 . Potential Cave-ins . | . . . . Cave-ins Triggered . | . . . . Exploration Rate (%) 32 | 4 73 41 10 Regions Visited 3 Branch Regions 1 Pre-discovered Areas . | . . . . Known Exits Taken . | . . . . Unknown Exits Taken 3 | 1 1 1 . Scrap Searched 1 | . . . 1 Spaces Dug . | . . . . Terrain Destroyed 134 | . 67 67 . Melee . | . . . . Projectile 9 | . . 9 . AOE 125 | . 67 58 . Terrain Rammed . | . . . . Walls Destroyed . | . . . . Machines Disabled . | . . . . Actions | -11 -10 -9 -9 --------- Run | Yrd Mat Mat Min Total 1245 | 63 644 527 11 Wait 9 | . 6 3 . Move 1100 | 56 603 430 11 Hop 3 | . . 3 . Pick Up 5 | . 2 3 . Fast Attach 32 | 6 8 18 . Attach 7 | . . 7 . Detach 12 | . 5 7 . Swap . | . . . . Drop 8 | . . 8 . Fire 67 | . 19 48 . Melee . | . . . . Ram . | . . . . Kick 2 | 1 1 . . Crush . | . . . . Escape Stasis . | . . . . Rewire . | . . . . Trap . | . . . . Miscellaneous . | . . . . Route ------- -11/Scrapyard -10/Materials (discovered 3 exits: *Mat x2 / [*Min]) -9/Materials (discovered 5 exits: *Mat x3 / [*Min] / [*Sto]) -9/Mines History --------- Turn | Location | Event 11 | -11/Scrapyard | Discovered new exit (range 16) 68 | -11/Scrapyard | Entered Materials 316 | -10/Materials | Build established: Mutant 915 | -10/Materials | Discovered new exit (range 14) 1007 | -10/Materials | Discovered new exit (range 8) 1035 | -10/Materials | Discovered new exit (range 15) 1225 | -10/Materials | Build established: Scavenger-Mutant 1443 | -10/Materials | Entered another Materials area 1443 | -9/Materials | Evolved 2 slots: Utility x2 1708 | -9/Materials | Discovered new exit (range 2) 1740 | -9/Materials | Identified exit to Materials 1833 | -9/Materials | Core integrity fell below 50% 1853 | -9/Materials | Lost 5 parts (2n1u2w) 2119 | -9/Materials | Build established: Mutant 2208 | -9/Materials | Lost 5 parts (1p2n1u1w) 2235 | -9/Materials | Core integrity fell below 20% 2238 | -9/Materials | Discovered new exit (range 15) 2300 | -9/Materials | Entered Mines 2314 | -9/Mines | Destroyed by Y-45 Defender with Heavy Assault Rifle Last Messages --------------- K-01 Serf collects debris. Y-45 Defender destroyed. K-01 Serf collects debris. R-06 Scavenger collects Imp. Ion Engine. K-01 Serf collects debris. Acquired 32 matter. K-01 Serf collects debris. Acquired 52 matter. K-01 Serf collects debris. LOCATION=UNKNOWN GOAL=ESCAPE Something is scanning the area. K-01 Serf collects debris. Searching scrap... Found Imp. Hover Unit. Found Weapon Shielding. Found Hvy. Assault Rifle. Found 61 Matter. K-01 Serf collects debris. Acquired 61 matter. Map ----- +----------------------------------------------------+ | | | | | | | | | | | | | | | | | | | | | | | | | | | | | | | | | | | | | | | ?????????????????????????????????????????????? | | ??????????????????????######?????????????????? | | ?????????????????????##"!!"##???#########????? | | ?????????????????????#""!!""#???# ???? | | ???????????????## ???#Y Y#???# """ """ #?? | | ?????????????### ??# #????# """ """ #?? | | ??????????? ##/@###???# """ """ #?? | | ??????????? ##??# """ #?? | | ???????????????# #### #?? | | ???????????????### =[ """ #?? | | ?????????????????## ! """ #?? | | ??????????????????# ## ###### """ #?? | | ??????????????????#??## #????# """ #?? | | ??????????????????????## ##????# #?? | | ???????????????????????## #?????############?? | | ????????????????????????# ???????????????????? | | ???????????????????????? ???????????????????? | | ????????????????????????# ???????????????????? | | ????????????????????????# ???????????????????? | | ????????????????????????# ???????????????????? | | ????????????????????????? ???????????????????? | | ????????????????????????? ???????????????????? | | ?????????????????????????????????????????????? | | ?????????????????????????????????????????????? | | ?????????????????????????????????????????????? | | ?????????????????????????????????????????????? | | ?????????????????????????????????????????????? | | ?????????????????????????????????????????????? | | ?????????????????????????????????????????????? | | ?????????????????????????????????????????????? | | ?????????????????????????????????????????????? | +----------------------------------------------------+ Best States ------------- Heat Dissipation 38 Energy Generation 14 Energy Capacity 160 Matter Stores 245 Matter Capacity 300 Sight Range 16 Terrain Scan Range 16 Terrain Scan Density 10 Resistance: KI 20 Resistance: TH 20 Resistance: EX 20 Resistance: EM 20 Resistance: I 20 Resistance: S 20 Resistance: P 20 Power Shielding 66 Evasion (%) 63 Melee Accuracy 10 Offensive Hacking 10 Item Schematics ----------------- VTOL Module | -9/Materials | Scanalyzed Robot Schematics ------------------ None Fabricated ------------ Nothing Repaired ---------- Nothing Alien Tech Used ----------------- None Achievements -------------- None Challenges ------------ None Game ------ Seed CoilSpacefoldRefractor Manual? 0 Play Time 00:12:38 Cumulative 3.0 hours Start 2025.08.25 @ 11:49:35 End 2025.08.25 @ 12:02:06 Sessions 1 Manual Loads 0 Difficulty Adventurer Special Mode None Game No. 9 Rogue 0 Adventurer 9 Explorer 0 Win Type - Total 0 Types 0/0/0/0/0/0/0/0/0/0 Lore% 2 Gallery% 8 Achievement% 14 Wizard Run 0 Options --------- Layout 1 ASCII 0 Keyboard 1 Movement Numpad Keybinds 0 Fullscreen 1 Font 24/Smallcaps Map View 50x35 Zoom Use 0% Tactical HUD 0 Map Filters NONE Filters NONE Steam 0 RUN: 46a819f4-c62a-4a86-9df9-b18b29f967c7